Workbook

Sheet Tabelle1
F2: 1 | G2: Function Rf(ByVal X, ByVal Y) As Double
G3: s = imsum(X, improduct("i", Y))
G4: Fs = imdiv(1, (imsum(s, -0.02)))
G5: Rfs = imreal(Fs)
E6: g = 0.02 | G6: Rf = Rfs
E7: 1.84 | G7: End Function
E8: =1-EXP(-theta) -> 0.8411825739
F9: 2 | G9: Function Rf1(ByVal X, ByVal Y) As Double
G10: s = imsum(X, improduct("i", Y))
G11: theta = 1.84
G12: Fs = impower(imsum(1, s), -1 / theta)
G13: Rfs = imreal(Fs)
G14: Rf1 = Rfs
G15: End Function
F17: 3 | G17: Function Rf2(ByVal X, ByVal Y) As Double
G18: s = imsum(X, improduct("i", Y))
G19: theta = 1.84
G20: alfa = 1-(imsum(1, impower(e, -theta))
G21: Fs = improduct(imdiv(-1, thet<), imln(imsum(1, -improduct(impower(e, -s), alfa))))
G22: Rfs = imreal(Fs)
G23: Rf = Rfs
G24: End Function
B29: Excel Formula 1 | C29: LT VB 1 | D29: Excel Formula 2 | E29: Excel Formula 2.1 | F29: LT VB 2 | G29: Excel Formula 3 | H29: Laplace transform 3
A31: 1 | B31: =EXP(A31*0.02) -> 1.02020134 | C31: =InverseLaplace(A31) -> 1.020201353 | D31: =1/(EXP(GAMMALN(1/1.84)))*EXP(-A31)*A31^((1-1.84)/1.84) -> 0.2250478432 | E31: =GAMMADIST(A31,1/1.84,1,0) -> 0.2250478432 | F31: =InverseLaplace1(A31) -> 0.2250478455 | G31: =((-1)/(LN(1-(1-EXP(-1.84)))))*(((1-EXP(-1.84))^(A31))/(A31)) -> 0.4571644423 | H31: =inverselaplace2(A31) -> 10.05761776 | I31: =-1/LN(1-Alpha)*Alpha^A31/A31 -> 0.4571644423
A32: 2 | B32: =EXP(A32*0.02) -> 1.040810774 | C32: =InverseLaplace(A32) -> 1.040810788 | D32: =1/(EXP(GAMMALN(1/1.84)))*EXP(-A32)*A32^((1-1.84)/1.84) -> 0.06033282153 | E32: =GAMMADIST(A32,1/1.84,1,0) -> 0.06033282153 | F32: =InverseLaplace1(A32) -> 0.06033282273 | G32: =((-1)/(LN(1-(1-EXP(-1.84)))))*(((1-EXP(-1.84))^(A32))/(A32)) -> 0.1922793811 | H32: =inverselaplace2(A32) -> 2.115073196 | I32: 0.1922793811
A33: 3 | B33: 1.061836547 | C33: 1.061836561 | D33: =1/(EXP(GAMMALN(1/1.84)))*EXP(-A33)*A33^((1-1.84)/1.84) -> 0.01844461805 | E33: 0.01844461805 | F33: =InverseLaplace1(A33) -> 0.01844461873 | G33: =((-1)/(LN(1-(1-EXP(-1.84)))))*(((1-EXP(-1.84))^(A33))/(A33)) -> 0.1078280432 | I33: 0.1078280432
A34: 4 | B34: 1.083287068 | C34: 1.083287083 | D34: 0.005950287295 | E34: 0.005950287295 | F34: =InverseLaplace1(A34) -> 0.00595028762 | G34: 0.06802730316 | I34: 0.06802730316
A35: 5 | B35: 1.105170918 | C35: =InverseLaplace(A35) -> 1.105170934 | D35: 0.001976978405 | E35: 0.001976978405 | F35: 0.001976978473 | G35: 0.04577870558 | I35: 0.04577870558
A36: 6 | B36: 1.127496852 | C36: 1.127496869 | D36: 0.000669205472 | E36: 0.000669205472 | F36: =InverseLaplace1(A36) -> 0.0006692053274 | G36: 0.03209020782 | I36: 0.03209020782
A37: 7 | B37: 1.150273799 | C37: 1.150273817 | D37: 0.0002294575419 | E37: 0.0002294575419 | F37: 0.0002294572408 | G37: =((-1)/(LN(1-(1-EXP(-1.84)))))*(((1-EXP(-1.84))^(A37))/(A37)) -> 0.02313747738 | I37: 0.02313747738
A38: 8 | B38: 1.173510871 | C38: 1.17351089 | D38: 7.94206195e-05 | E38: 7.94206195e-05 | F38: 7.942020078e-05 | G38: 0.01702998743
A39: 9 | B39: 1.197217363 | C39: =InverseLaplace(A39) -> 1.197217383 | D39: 2.768767891e-05 | E39: 2.768767891e-05 | F39: 2.768717215e-05 | G39: 0.01273362548
A40: 10 | B40: 1.221402758 | C40: 1.221402779 | D40: 9.707396725e-06 | E40: 9.707396725e-06 | F40: 9.706834158e-06 | G40: 0.009640173467
A41: 11 | B41: 1.246076731 | C41: 1.246076753 | D41: 3.419098688e-06 | E41: 3.419098688e-06 | F41: 3.418500911e-06 | G41: 0.007371950845
A42: 12 | B42: 1.27124915 | C42: 1.271249174 | D42: 1.208831741e-06 | E42: 1.208831741e-06 | F42: 1.208229416e-06 | G42: 0.005684393538
A43: 13 | B43: 1.296930087 | C43: 1.296930111 | D43: 4.287476136e-07 | E43: 4.287476136e-07 | F43: 4.281531064e-07 | G43: 0.004413796419
A44: 14 | B44: 1.323129812 | C44: 1.323129838 | D44: 1.524804715e-07 | E44: 1.524804715e-07 | F44: 1.519111408e-07 | G44: 0.003447608016
A45: 15 | B45: 1.349858808 | C45: 1.349858835 | D45: 5.43551729e-08 | E45: 5.43551729e-08 | F45: 5.382158139e-08 | G45: 0.002706729932

Sheet Tabelle2

Sheet Tabelle3
